[Event "Titled Tuesday Blitz April 25 Late 2023"]
[White "Jovic, Stanoje"]
[Black "Di Berardino, Diego Rafael"]
[WhiteFideId "905020"]
[BlackFideId "2105446"]
[WhiteElo "2236"]
[BlackElo "2432"]
[Result "1/2-1/2"]
[Round "10"]
[TimeControl "180+2"]
[Date "2023.04.25"]
[WhiteClock "0:00:15"]
[BlackClock "0:00:04"]

1. c4 {[%clk 0:03:00]}  g6 {[%clk 0:02:58]} 2. g3 {[%clk 0:03:00]}  Bg7 {[%clk 0:02:58]} 3. Bg2 {[%clk 0:03:01]}  c5 {[%clk 0:02:55]} 4. Nc3 {[%clk 0:03:01]}  Nc6 {[%clk 0:02:56]} 5. Nf3 {[%clk 0:03:01]}  e5 {[%clk 0:02:53]} 6. O-O {[%clk 0:03:00]}  Nge7 {[%clk 0:02:54]} 7. Ne1 {[%clk 0:03:00]}  d6 {[%clk 0:02:53]} 8. Nc2 {[%clk 0:03:01]}  O-O {[%clk 0:02:50]} 9. Ne3 {[%clk 0:03:01]}  f5 {[%clk 0:02:49]} 10. Ned5 {[%clk 0:03:01]}  f4 {[%clk 0:02:49]} 11. d3 {[%clk 0:03:01]}  g5 {[%clk 0:02:48]} 12. a3 {[%clk 0:03:01]}  Rb8 {[%clk 0:02:33]} 13. Rb1 {[%clk 0:03:01]}  Bg4 {[%clk 0:02:31]} 14. b4 {[%clk 0:02:58]}  b6 {[%clk 0:02:28]} 15. b5 {[%clk 0:02:42]}  Nd4 {[%clk 0:02:28]} 16. Nxe7+ {[%clk 0:02:38]}  Qxe7 {[%clk 0:02:27]} 17. h3 {[%clk 0:02:34]}  Bh5 {[%clk 0:01:58]} 18. g4 {[%clk 0:02:32]}  f3 {[%clk 0:01:42]} 19. Bxf3 {[%clk 0:02:26]}  Nxf3+ {[%clk 0:01:40]} 20. exf3 {[%clk 0:02:26]}  Bg6 {[%clk 0:01:40]} 21. Nd5 {[%clk 0:02:13]}  Qd8 {[%clk 0:01:36]} 22. a4 {[%clk 0:02:06]}  Rb7 {[%clk 0:01:36]} 23. Re1 {[%clk 0:02:01]}  Rbf7 {[%clk 0:01:35]} 24. Re3 {[%clk 0:02:01]}  h5 {[%clk 0:01:33]} 25. a5 {[%clk 0:01:58]}  hxg4 {[%clk 0:01:31]} 26. hxg4 {[%clk 0:01:58]}  Qd7 {[%clk 0:01:25]} 27. Kf1 {[%clk 0:01:49]}  bxa5 {[%clk 0:01:09]} 28. Bd2 {[%clk 0:01:41]}  a4 {[%clk 0:01:08]} 29. b6 {[%clk 0:01:35]}  axb6 {[%clk 0:01:03]} 30. Rxb6 {[%clk 0:01:35]}  Ra8 {[%clk 0:00:43]} 31. Bc3 {[%clk 0:01:17]}  a3 {[%clk 0:00:42]} 32. Rb3 {[%clk 0:01:12]}  Qa4 {[%clk 0:00:35]} 33. Ke2 {[%clk 0:00:56]}  Ra6 {[%clk 0:00:20]} 34. Rb8+ {[%clk 0:00:53]}  Bf8 {[%clk 0:00:20]} 35. Qxa4 {[%clk 0:00:43]}  Rxa4 {[%clk 0:00:21]} 36. Ba1 {[%clk 0:00:39]}  a2 {[%clk 0:00:21]} 37. Nc3 {[%clk 0:00:38]}  Ra3 {[%clk 0:00:20]} 38. Ne4 {[%clk 0:00:36]}  Kg7 {[%clk 0:00:04]} 39. Nxg5 {[%clk 0:00:33]}  Re7 {[%clk 0:00:05]} 40. Ne4 {[%clk 0:00:32]}  Rea7 {[%clk 0:00:04]} 41. Ng3 {[%clk 0:00:23]}  Be7 {[%clk 0:00:04]} 42. Ne4 {[%clk 0:00:15]}  R3a4 {[%clk 0:00:03]} 43. Rb6 {[%clk 0:00:15]}  R4a6 {[%clk 0:00:02]} 44. Rb2 {[%clk 0:00:13]}  Ra3 {[%clk 0:00:02]} 45. Rc2 {[%clk 0:00:10]}  R3a6 {[%clk 0:00:03]} 46. Nc3 {[%clk 0:00:10]}  Be8 {[%clk 0:00:03]} 47. f4 {[%clk 0:00:09]}  exf4 {[%clk 0:00:02]} 48. Nd5+ {[%clk 0:00:09]}  Kf8 {[%clk 0:00:01]} 49. Nxf4 {[%clk 0:00:08]}  Bg5 {[%clk 0:00:01]} 50. Ne6+ {[%clk 0:00:08]}  Kg8 {[%clk 0:00:01]} 51. Nxg5 {[%clk 0:00:09]}  Bg6 {[%clk 0:00:02]} 52. Ne4 {[%clk 0:00:08]}  Rf7 {[%clk 0:00:02]} 53. f4 {[%clk 0:00:08]}  d5 {[%clk 0:00:03]} 54. Nf6+ {[%clk 0:00:08]}  Kf8 {[%clk 0:00:02]} 55. f5 {[%clk 0:00:07]}  Bxf5 {[%clk 0:00:02]} 56. gxf5 {[%clk 0:00:07]}  d4 {[%clk 0:00:03]} 57. Re8+ {[%clk 0:00:07]}  Kg7 {[%clk 0:00:03]} 58. Nh5+ {[%clk 0:00:08]}  Kh6 {[%clk 0:00:03]} 59. Ng3 {[%clk 0:00:07]}  Kg5 {[%clk 0:00:03]} 60. Re4 {[%clk 0:00:07]}  Kf6 {[%clk 0:00:03]} 61. Kf3 {[%clk 0:00:08]}  Rb6 {[%clk 0:00:03]} 62. Rh2 {[%clk 0:00:08]}  Rb1 {[%clk 0:00:04]} 63. Rh6+ {[%clk 0:00:09]}  Kg7 {[%clk 0:00:02]} 64. Rg6+ {[%clk 0:00:09]}  Kf8 {[%clk 0:00:02]} 65. Bxd4 {[%clk 0:00:08]}  cxd4 {[%clk 0:00:02]} 66. Ra6 {[%clk 0:00:08]}  a1=Q {[%clk 0:00:03]} 67. Rxa1 {[%clk 0:00:07]}  Rxa1 {[%clk 0:00:03]} 68. Rxd4 {[%clk 0:00:08]}  Ra3 {[%clk 0:00:04]} 69. Rf4 {[%clk 0:00:09]}  Rd7 {[%clk 0:00:04]} 70. Kg4 {[%clk 0:00:10]}  Rdxd3 {[%clk 0:00:04]} 71. Ne4 {[%clk 0:00:11]}  Rd4 {[%clk 0:00:05]} 72. Kg5 {[%clk 0:00:11]}  Ra4 {[%clk 0:00:04]} 73. Nc5 {[%clk 0:00:10]}  Rxf4 {[%clk 0:00:04]} 74. Ne6+ {[%clk 0:00:08]}  Kf7 {[%clk 0:00:04]} 75. Nxf4 {[%clk 0:00:09]}  Rxc4 {[%clk 0:00:04]} 76. Ng6 {[%clk 0:00:10]}  Rc5 {[%clk 0:00:04]} 77. Nf4 {[%clk 0:00:10]}  Ke7 {[%clk 0:00:04]} 78. Ng6+ {[%clk 0:00:10]}  Ke8 {[%clk 0:00:03]} 79. Kf6 {[%clk 0:00:11]}  Ra5 {[%clk 0:00:04]} 80. Ne5 {[%clk 0:00:11]}  Ra6+ {[%clk 0:00:04]} 81. Kg5 {[%clk 0:00:11]}  Ke7 {[%clk 0:00:05]} 82. Ng6+ {[%clk 0:00:12]}  Kf7 {[%clk 0:00:05]} 83. Nf4 {[%clk 0:00:13]}  Kf8 {[%clk 0:00:05]} 84. Ng6+ {[%clk 0:00:14]}  Kg7 {[%clk 0:00:05]} 85. Ne5 {[%clk 0:00:15]}  Ra5 {[%clk 0:00:05]} 86. Ng4 {[%clk 0:00:16]}  Rxf5+ {[%clk 0:00:04]} 87. Kxf5 {[%clk 0:00:15]} 1/2-1/2


[Site "https://www.chess.com"]

[Event "Titled Tuesday Blitz April 25 Late 2023"]
[White "Remolar Gallen, Jose"]
[Black "Bashkansky, Ethan"]
[WhiteFideId "2215187"]
[BlackFideId "2071533"]
[WhiteElo "2223"]
[BlackElo "2101"]
[Result "1-0"]
[Round "10"]
[TimeControl "180+2"]
[Date "2023.04.25"]
[WhiteClock "0:00:21"]
[BlackClock "0:00:01"]

1. e4 {[%clk 0:03:00]}  c6 {[%clk 0:03:00]} 2. d4 {[%clk 0:03:00]}  d5 {[%clk 0:03:01]} 3. e5 {[%clk 0:03:01]}  c5 {[%clk 0:03:01]} 4. dxc5 {[%clk 0:03:00]}  Nc6 {[%clk 0:03:02]} 5. f4 {[%clk 0:02:55]}  Nh6 {[%clk 0:03:01]} 6. Nf3 {[%clk 0:02:54]}  Bg4 {[%clk 0:02:57]} 7. a3 {[%clk 0:02:52]}  a5 {[%clk 0:02:44]} 8. h3 {[%clk 0:02:34]}  Bxf3 {[%clk 0:02:41]} 9. Qxf3 {[%clk 0:02:35]}  e6 {[%clk 0:02:39]} 10. Bd3 {[%clk 0:02:33]}  Bxc5 {[%clk 0:02:34]} 11. Be3 {[%clk 0:02:21]}  Qb6 {[%clk 0:02:28]} 12. Bxc5 {[%clk 0:02:15]}  Qxc5 {[%clk 0:02:29]} 13. g4 {[%clk 0:02:02]}  O-O {[%clk 0:02:17]} 14. Nc3 {[%clk 0:01:57]}  Kh8 {[%clk 0:01:32]} 15. Qf2 {[%clk 0:01:43]}  b6 {[%clk 0:01:19]} 16. O-O {[%clk 0:01:38]}  f6 {[%clk 0:01:00]} 17. exf6 {[%clk 0:01:34]}  gxf6 {[%clk 0:01:00]} 18. Rae1 {[%clk 0:01:30]}  Rfe8 {[%clk 0:00:55]} 19. Na4 {[%clk 0:01:26]}  Qxf2+ {[%clk 0:00:54]} 20. Rxf2 {[%clk 0:01:27]}  Rab8 {[%clk 0:00:54]} 21. Bb5 {[%clk 0:01:24]}  Rec8 {[%clk 0:00:54]} 22. c3 {[%clk 0:01:19]}  Na7 {[%clk 0:00:32]} 23. Ba6 {[%clk 0:01:16]}  Re8 {[%clk 0:00:29]} 24. Rfe2 {[%clk 0:01:04]}  b5 {[%clk 0:00:18]} 25. Nc5 {[%clk 0:01:02]}  b4 {[%clk 0:00:18]} 26. axb4 {[%clk 0:00:52]}  axb4 {[%clk 0:00:18]} 27. Nd7 {[%clk 0:00:51]}  Rbd8 {[%clk 0:00:06]} 28. Nxf6 {[%clk 0:00:51]}  Rf8 {[%clk 0:00:03]} 29. Rxe6 {[%clk 0:00:50]}  bxc3 {[%clk 0:00:04]} 30. bxc3 {[%clk 0:00:50]}  Nf7 {[%clk 0:00:02]} 31. g5 {[%clk 0:00:39]}  Kg7 {[%clk 0:00:02]} 32. h4 {[%clk 0:00:38]}  Nc8 {[%clk 0:00:01]} 33. Bd3 {[%clk 0:00:33]}  Ncd6 {[%clk 0:00:01]} 34. Nxh7 {[%clk 0:00:29]}  Rh8 {[%clk 0:00:02]} 35. Rg6+ {[%clk 0:00:24]}  Kxh7 {[%clk 0:00:01]} 36. Rxd6+ {[%clk 0:00:24]}  Kg7 {[%clk 0:00:02]} 37. Rg6+ {[%clk 0:00:24]}  Kf8 {[%clk 0:00:01]} 38. Rf6 {[%clk 0:00:24]}  Rxh4 {[%clk 0:00:01]} 39. g6 {[%clk 0:00:21]} 1-0


[Site "https://www.chess.com"]

[Event "Titled Tuesday Blitz April 25 Late 2023"]
[White "Albuquerque Junior,Wellington S."]
[Black "Kovalevsky, Stanislav"]
[WhiteFideId "2151480"]
[BlackFideId "13508598"]
[WhiteElo "2109"]
[BlackElo "2174"]
[Result "1-0"]
[Round "10"]
[TimeControl "180+2"]
[Date "2023.04.25"]
[WhiteClock "0:01:19"]
[BlackClock "0:01:50"]

1. c4 {[%clk 0:03:00]}  e6 {[%clk 0:03:00]} 2. g3 {[%clk 0:02:58]}  d5 {[%clk 0:03:00]} 3. Bg2 {[%clk 0:02:57]}  c6 {[%clk 0:03:00]} 4. Nf3 {[%clk 0:02:55]}  Nd7 {[%clk 0:03:01]} 5. b3 {[%clk 0:02:54]}  Ngf6 {[%clk 0:03:01]} 6. O-O {[%clk 0:02:54]}  a6 {[%clk 0:03:01]} 7. Bb2 {[%clk 0:02:53]}  b5 {[%clk 0:03:01]} 8. d3 {[%clk 0:02:54]}  Bb7 {[%clk 0:03:01]} 9. Nbd2 {[%clk 0:02:47]}  a5 {[%clk 0:03:00]} 10. cxb5 {[%clk 0:02:43]}  cxb5 {[%clk 0:03:01]} 11. Rc1 {[%clk 0:02:41]}  Bd6 {[%clk 0:02:59]} 12. e4 {[%clk 0:02:22]}  Qb8 {[%clk 0:02:54]} 13. Nd4 {[%clk 0:02:17]}  b4 {[%clk 0:02:38]} 14. Nb5 {[%clk 0:02:07]}  Bc5 {[%clk 0:02:38]} 15. d4 {[%clk 0:02:00]}  Bb6 {[%clk 0:02:38]} 16. e5 {[%clk 0:02:00]}  Ne4 {[%clk 0:02:20]} 17. Nxe4 {[%clk 0:02:00]}  dxe4 {[%clk 0:02:20]} 18. Nd6+ {[%clk 0:01:59]}  Ke7 {[%clk 0:02:21]} 19. Qh5 {[%clk 0:01:55]}  g6 {[%clk 0:02:15]} 20. Qh4+ {[%clk 0:01:55]}  f6 {[%clk 0:02:14]} 21. Nxb7 {[%clk 0:01:51]}  Qxb7 {[%clk 0:02:13]} 22. Bxe4 {[%clk 0:01:52]}  Qa7 {[%clk 0:02:11]} 23. Bxa8 {[%clk 0:01:51]}  Rxa8 {[%clk 0:02:12]} 24. exf6+ {[%clk 0:01:48]}  Kd6 {[%clk 0:01:51]} 25. Qf4+ {[%clk 0:01:20]}  Kd5 {[%clk 0:01:50]} 26. Qf3+ {[%clk 0:01:19]}  Kd6 {[%clk 0:01:50]} 27. Qc6# {[%clk 0:01:19]} 1-0


[Site "https://www.chess.com"]

[Event "Titled Tuesday Blitz April 25 Late 2023"]
[White "Lorenzo De La Riva, Lazaro"]
[Black "Torres Dominguez, David"]
[WhiteFideId "2268809"]
[BlackFideId "2220857"]
[WhiteElo "2294"]
[BlackElo "1999"]
[Result "1-0"]
[Round "10"]
[TimeControl "180+2"]
[Date "2023.04.25"]
[WhiteClock "0:01:37"]
[BlackClock "0:00:04"]

1. Nf3 {[%clk 0:02:51]}  d5 {[%clk 0:02:59]} 2. b4 {[%clk 0:02:49]}  e6 {[%clk 0:02:57]} 3. b5 {[%clk 0:02:46]}  a6 {[%clk 0:02:55]} 4. e3 {[%clk 0:02:43]}  axb5 {[%clk 0:02:52]} 5. Bxb5+ {[%clk 0:02:42]}  Bd7 {[%clk 0:02:49]} 6. Be2 {[%clk 0:02:41]}  Nf6 {[%clk 0:02:36]} 7. Bb2 {[%clk 0:02:40]}  Be7 {[%clk 0:02:33]} 8. O-O {[%clk 0:02:40]}  O-O {[%clk 0:02:32]} 9. c4 {[%clk 0:02:38]}  c5 {[%clk 0:02:32]} 10. cxd5 {[%clk 0:02:37]}  exd5 {[%clk 0:02:30]} 11. Nc3 {[%clk 0:02:35]}  Nc6 {[%clk 0:02:24]} 12. a4 {[%clk 0:02:34]}  d4 {[%clk 0:02:20]} 13. Nb5 {[%clk 0:02:33]}  Ne4 {[%clk 0:01:43]} 14. d3 {[%clk 0:02:29]}  Nd6 {[%clk 0:01:38]} 15. exd4 {[%clk 0:02:28]}  Nxb5 {[%clk 0:01:33]} 16. axb5 {[%clk 0:02:29]}  Nxd4 {[%clk 0:01:28]} 17. Nxd4 {[%clk 0:02:27]}  cxd4 {[%clk 0:01:28]} 18. Bxd4 {[%clk 0:02:24]}  Bxb5 {[%clk 0:01:25]} 19. Rxa8 {[%clk 0:02:23]}  Qxa8 {[%clk 0:01:23]} 20. Qb3 {[%clk 0:02:23]}  Bc6 {[%clk 0:01:14]} 21. Qb2 {[%clk 0:02:23]}  f6 {[%clk 0:01:05]} 22. Bg4 {[%clk 0:02:22]}  Bd6 {[%clk 0:01:02]} 23. Be6+ {[%clk 0:02:19]}  Kh8 {[%clk 0:01:00]} 24. h4 {[%clk 0:02:19]}  Qb8 {[%clk 0:00:52]} 25. Re1 {[%clk 0:02:18]}  Bh2+ {[%clk 0:00:47]} 26. Kh1 {[%clk 0:02:15]}  Bd6 {[%clk 0:00:39]} 27. Bh3 {[%clk 0:02:07]}  b5 {[%clk 0:00:33]} 28. h5 {[%clk 0:02:05]}  h6 {[%clk 0:00:30]} 29. Qc2 {[%clk 0:01:57]}  Qb7 {[%clk 0:00:29]} 30. Re6 {[%clk 0:01:56]}  Rd8 {[%clk 0:00:25]} 31. f3 {[%clk 0:01:48]}  Bd5 {[%clk 0:00:17]} 32. Re1 {[%clk 0:01:47]}  Bf7 {[%clk 0:00:14]} 33. Qb2 {[%clk 0:01:45]}  Bf8 {[%clk 0:00:06]} 34. Bxf6 {[%clk 0:01:43]}  Bxh5 {[%clk 0:00:04]} 35. Bxd8 {[%clk 0:01:42]}  Bxf3 {[%clk 0:00:04]} 36. Qe5 {[%clk 0:01:37]} 1-0


[Site "https://www.chess.com"]

[Event "Titled Tuesday Blitz April 25 Late 2023"]
[White "Adewumi, Tanitoluwa"]
[Black "Golubev, Mikhail"]
[WhiteFideId "30966396"]
[BlackFideId "14100983"]
[WhiteElo "2283"]
[BlackElo "2374"]
[Result "0-1"]
[Round "10"]
[TimeControl "180+2"]
[Date "2023.04.25"]
[WhiteClock "0:00:01"]
[BlackClock "0:00:14"]

1. e4 {[%clk 0:03:00]}  c5 {[%clk 0:02:59]} 2. Nf3 {[%clk 0:02:58]}  d6 {[%clk 0:02:59]} 3. Bb5+ {[%clk 0:02:56]}  Bd7 {[%clk 0:02:59]} 4. Bxd7+ {[%clk 0:02:55]}  Nxd7 {[%clk 0:03:00]} 5. c3 {[%clk 0:02:54]}  Ngf6 {[%clk 0:03:00]} 6. Qe2 {[%clk 0:02:54]}  Rc8 {[%clk 0:02:28]} 7. O-O {[%clk 0:02:52]}  e6 {[%clk 0:02:28]} 8. d4 {[%clk 0:02:51]}  cxd4 {[%clk 0:02:28]} 9. cxd4 {[%clk 0:02:52]}  d5 {[%clk 0:02:28]} 10. e5 {[%clk 0:02:38]}  Ne4 {[%clk 0:02:27]} 11. Be3 {[%clk 0:02:39]}  Be7 {[%clk 0:02:19]} 12. Ne1 {[%clk 0:02:36]}  f5 {[%clk 0:02:06]} 13. exf6 {[%clk 0:02:31]}  Bxf6 {[%clk 0:02:00]} 14. f3 {[%clk 0:02:28]}  Nd6 {[%clk 0:01:59]} 15. Nd3 {[%clk 0:02:12]}  Nf5 {[%clk 0:01:54]} 16. Nc3 {[%clk 0:01:57]}  O-O {[%clk 0:01:42]} 17. Kh1 {[%clk 0:01:43]}  Bxd4 {[%clk 0:01:30]} 18. Bxd4 {[%clk 0:01:06]}  Nxd4 {[%clk 0:01:31]} 19. Qe3 {[%clk 0:01:05]}  Qf6 {[%clk 0:01:31]} 20. Rae1 {[%clk 0:01:02]}  Rfe8 {[%clk 0:01:26]} 21. Qf2 {[%clk 0:00:51]}  b6 {[%clk 0:01:19]} 22. f4 {[%clk 0:00:38]}  Nc5 {[%clk 0:01:18]} 23. Ne5 {[%clk 0:00:31]}  Nf5 {[%clk 0:01:03]} 24. g4 {[%clk 0:00:29]}  Nd6 {[%clk 0:01:01]} 25. g5 {[%clk 0:00:25]}  Qf5 {[%clk 0:00:58]} 26. g6 {[%clk 0:00:21]}  h6 {[%clk 0:00:55]} 27. Qg2 {[%clk 0:00:14]}  Nde4 {[%clk 0:00:50]} 28. Nb5 {[%clk 0:00:11]}  a6 {[%clk 0:00:39]} 29. Nd4 {[%clk 0:00:11]}  Qf6 {[%clk 0:00:39]} 30. b4 {[%clk 0:00:11]}  Nd3 {[%clk 0:00:35]} 31. Nxd3 {[%clk 0:00:03]}  Qxd4 {[%clk 0:00:35]} 32. Ne5 {[%clk 0:00:03]}  Qxb4 {[%clk 0:00:29]} 33. Qe2 {[%clk 0:00:03]}  Qb5 {[%clk 0:00:23]} 34. Qg4 {[%clk 0:00:02]}  Rc2 {[%clk 0:00:19]} 35. f5 {[%clk 0:00:02]}  Nf2+ {[%clk 0:00:16]} 36. Rxf2 {[%clk 0:00:02]}  Rxf2 {[%clk 0:00:17]} 37. Qh3 {[%clk 0:00:01]}  exf5 {[%clk 0:00:14]} 0-1


[Site "https://www.chess.com"]

[Event "Titled Tuesday Blitz April 25 Late 2023"]
[White "Alexikov, Alexander"]
[Black "Liu, Eric"]
[WhiteFideId "14103958"]
[BlackFideId "30960240"]
[WhiteElo "2186"]
[BlackElo "2094"]
[Result "1/2-1/2"]
[Round "10"]
[TimeControl "180+2"]
[Date "2023.04.25"]
[WhiteClock "0:00:13"]
[BlackClock "0:01:30"]

1. e4 {[%clk 0:03:00]}  b6 {[%clk 0:03:00]} 2. d4 {[%clk 0:02:59]}  Bb7 {[%clk 0:03:00]} 3. Bd3 {[%clk 0:02:58]}  e6 {[%clk 0:03:01]} 4. Qe2 {[%clk 0:02:58]}  h5 {[%clk 0:03:00]} 5. f4 {[%clk 0:02:48]}  h4 {[%clk 0:03:01]} 6. Nh3 {[%clk 0:02:47]}  d6 {[%clk 0:02:58]} 7. O-O {[%clk 0:02:45]}  c5 {[%clk 0:02:55]} 8. c3 {[%clk 0:02:44]}  Nc6 {[%clk 0:02:55]} 9. d5 {[%clk 0:02:41]}  Nce7 {[%clk 0:02:55]} 10. c4 {[%clk 0:02:39]}  e5 {[%clk 0:02:53]} 11. Nc3 {[%clk 0:02:34]}  f6 {[%clk 0:02:52]} 12. a3 {[%clk 0:02:18]}  Qd7 {[%clk 0:02:52]} 13. b4 {[%clk 0:02:17]}  a5 {[%clk 0:02:51]} 14. bxc5 {[%clk 0:02:16]}  bxc5 {[%clk 0:02:49]} 15. Rb1 {[%clk 0:02:16]}  Nh6 {[%clk 0:02:47]} 16. fxe5 {[%clk 0:02:15]}  dxe5 {[%clk 0:02:45]} 17. Be3 {[%clk 0:02:06]}  Nc8 {[%clk 0:02:45]} 18. Nf2 {[%clk 0:02:03]}  Be7 {[%clk 0:02:44]} 19. Nb5 {[%clk 0:02:02]}  O-O {[%clk 0:02:44]} 20. Rb2 {[%clk 0:02:02]}  Nd6 {[%clk 0:02:44]} 21. Bxh6 {[%clk 0:02:01]}  gxh6 {[%clk 0:02:44]} 22. Qh5 {[%clk 0:02:01]}  Rf7 {[%clk 0:02:43]} 23. Qxh4 {[%clk 0:01:55]}  f5 {[%clk 0:02:38]} 24. Qxh6 {[%clk 0:01:55]}  fxe4 {[%clk 0:02:32]} 25. Nxe4 {[%clk 0:01:54]}  Rxf1+ {[%clk 0:02:29]} 26. Kxf1 {[%clk 0:01:53]}  Rf8+ {[%clk 0:02:22]} 27. Kg1 {[%clk 0:01:30]}  Nf5 {[%clk 0:02:03]} 28. Qg6+ {[%clk 0:01:20]}  Ng7 {[%clk 0:02:04]} 29. d6 {[%clk 0:01:15]}  Bd8 {[%clk 0:01:59]} 30. Nbc3 {[%clk 0:01:08]}  Rf4 {[%clk 0:01:56]} 31. h3 {[%clk 0:01:04]}  Bc6 {[%clk 0:01:51]} 32. Rb8 {[%clk 0:00:59]}  Rf8 {[%clk 0:01:46]} 33. Nxc5 {[%clk 0:00:43]}  Qa7 {[%clk 0:01:30]} 34. Qh7+ {[%clk 0:00:27]}  Kf7 {[%clk 0:01:29]} 35. Qg6+ {[%clk 0:00:20]}  Kg8 {[%clk 0:01:30]} 36. Qh7+ {[%clk 0:00:14]}  Kf7 {[%clk 0:01:30]} 37. Qg6+ {[%clk 0:00:13]}  Kg8 {[%clk 0:01:30]} 1/2-1/2


[Site "https://www.chess.com"]

[Event "Titled Tuesday Blitz April 25 Late 2023"]
[White "Mikhalsky, Vladimir"]
[Black "Rodriguez Santiago, Jaime"]
[WhiteFideId "14144352"]
[BlackFideId "3100898"]
[WhiteElo "2236"]
[BlackElo "2025"]
[Result "1-0"]
[Round "10"]
[TimeControl "180+2"]
[Date "2023.04.25"]
[WhiteClock "0:00:57"]
[BlackClock "0:00:03"]

1. c3 {[%clk 0:03:00]}  Nf6 {[%clk 0:02:56]} 2. d3 {[%clk 0:03:00]}  e6 {[%clk 0:02:56]} 3. g3 {[%clk 0:02:58]}  d5 {[%clk 0:02:56]} 4. Bg2 {[%clk 0:02:59]}  c5 {[%clk 0:02:55]} 5. Nf3 {[%clk 0:02:59]}  Nc6 {[%clk 0:02:55]} 6. O-O {[%clk 0:03:00]}  b6 {[%clk 0:02:54]} 7. Nbd2 {[%clk 0:03:00]}  Bb7 {[%clk 0:02:54]} 8. e4 {[%clk 0:03:00]}  dxe4 {[%clk 0:02:50]} 9. dxe4 {[%clk 0:03:00]}  Be7 {[%clk 0:02:48]} 10. e5 {[%clk 0:02:59]}  Nd7 {[%clk 0:02:45]} 11. Re1 {[%clk 0:02:58]}  Qc7 {[%clk 0:02:44]} 12. Nc4 {[%clk 0:02:57]}  O-O {[%clk 0:02:36]} 13. Bf4 {[%clk 0:02:57]}  Rad8 {[%clk 0:02:27]} 14. Qc2 {[%clk 0:02:56]}  h6 {[%clk 0:02:24]} 15. h4 {[%clk 0:02:55]}  Ba6 {[%clk 0:02:12]} 16. Nd6 {[%clk 0:02:52]}  Bxd6 {[%clk 0:02:12]} 17. exd6 {[%clk 0:02:52]}  Qc8 {[%clk 0:02:05]} 18. Rad1 {[%clk 0:02:46]}  Rfe8 {[%clk 0:01:56]} 19. c4 {[%clk 0:02:39]}  e5 {[%clk 0:01:54]} 20. Bc1 {[%clk 0:02:33]}  Nd4 {[%clk 0:01:49]} 21. Nxd4 {[%clk 0:02:33]}  exd4 {[%clk 0:01:48]} 22. Bf4 {[%clk 0:02:24]}  Bb7 {[%clk 0:01:44]} 23. Re7 {[%clk 0:02:17]}  Bxg2 {[%clk 0:01:37]} 24. Kxg2 {[%clk 0:02:16]}  Rxe7 {[%clk 0:01:25]} 25. dxe7 {[%clk 0:02:16]}  Re8 {[%clk 0:01:25]} 26. Re1 {[%clk 0:02:15]}  Qc6+ {[%clk 0:01:19]} 27. Qe4 {[%clk 0:02:10]}  Qxe4+ {[%clk 0:01:09]} 28. Rxe4 {[%clk 0:02:10]}  f5 {[%clk 0:01:02]} 29. Re1 {[%clk 0:02:06]}  Kf7 {[%clk 0:01:00]} 30. Bd6 {[%clk 0:02:06]}  Nf6 {[%clk 0:00:57]} 31. f3 {[%clk 0:02:05]}  g5 {[%clk 0:00:55]} 32. hxg5 {[%clk 0:02:04]}  hxg5 {[%clk 0:00:55]} 33. Re5 {[%clk 0:02:02]}  Kg6 {[%clk 0:00:51]} 34. Re6 {[%clk 0:02:00]}  Kf7 {[%clk 0:00:50]} 35. Re5 {[%clk 0:02:01]}  Kg6 {[%clk 0:00:31]} 36. b4 {[%clk 0:01:59]}  d3 {[%clk 0:00:30]} 37. Kf2 {[%clk 0:01:56]}  g4 {[%clk 0:00:29]} 38. bxc5 {[%clk 0:01:51]}  bxc5 {[%clk 0:00:28]} 39. Bxc5 {[%clk 0:01:47]}  gxf3 {[%clk 0:00:28]} 40. Kxf3 {[%clk 0:01:47]}  d2 {[%clk 0:00:25]} 41. Ke2 {[%clk 0:01:46]}  Ne4 {[%clk 0:00:22]} 42. Bb4 {[%clk 0:01:39]}  Kf6 {[%clk 0:00:20]} 43. Ra5 {[%clk 0:01:27]}  Nxg3+ {[%clk 0:00:17]} 44. Kxd2 {[%clk 0:01:26]}  Ne4+ {[%clk 0:00:14]} 45. Ke3 {[%clk 0:01:26]}  Ke6 {[%clk 0:00:09]} 46. Ra6+ {[%clk 0:01:26]}  Ke5 {[%clk 0:00:09]} 47. Ba3 {[%clk 0:01:20]}  f4+ {[%clk 0:00:09]} 48. Kf3 {[%clk 0:01:19]}  Nd2+ {[%clk 0:00:09]} 49. Kg4 {[%clk 0:01:17]}  Nxc4 {[%clk 0:00:09]} 50. Bc1 {[%clk 0:01:15]}  Ke4 {[%clk 0:00:07]} 51. Ra4 {[%clk 0:01:10]}  Kd3 {[%clk 0:00:04]} 52. Rxa7 {[%clk 0:01:10]}  Ne5+ {[%clk 0:00:04]} 53. Kf5 {[%clk 0:01:04]}  Nc6 {[%clk 0:00:03]} 54. Rd7+ {[%clk 0:01:03]}  Kc2 {[%clk 0:00:03]} 55. Rc7 {[%clk 0:01:02]}  Kxc1 {[%clk 0:00:02]} 56. Rxc6+ {[%clk 0:01:02]}  Kb2 {[%clk 0:00:02]} 57. Ke6 {[%clk 0:01:01]}  f3 {[%clk 0:00:02]} 58. Kf7 {[%clk 0:01:00]}  f2 {[%clk 0:00:02]} 59. Rf6 {[%clk 0:01:01]}  f1=Q {[%clk 0:00:01]} 60. Rxf1 {[%clk 0:01:00]}  Rxe7+ {[%clk 0:00:02]} 61. Kxe7 {[%clk 0:01:00]}  Kxa2 {[%clk 0:00:03]} 62. Rf3 {[%clk 0:00:57]} 1-0


[Site "https://www.chess.com"]

[Event "Titled Tuesday Blitz April 25 Late 2023"]
[White "Eidelman, Gabriel"]
[Black "Prydun, Andriy"]
[WhiteFideId "30910544"]
[BlackFideId "14145898"]
[WhiteElo "2209"]
[BlackElo "2164"]
[Result "0-1"]
[Round "10"]
[TimeControl "180+2"]
[Date "2023.04.25"]
[WhiteClock "0:00:03"]
[BlackClock "0:00:56"]

1. a3 {[%clk 0:02:56]}  d5 {[%clk 0:02:58]} 2. d4 {[%clk 0:02:56]}  Nd7 {[%clk 0:02:58]} 3. Nf3 {[%clk 0:02:56]}  Ngf6 {[%clk 0:02:58]} 4. e3 {[%clk 0:02:54]}  e6 {[%clk 0:02:57]} 5. c4 {[%clk 0:02:55]}  Be7 {[%clk 0:02:57]} 6. Nc3 {[%clk 0:02:54]}  O-O {[%clk 0:02:58]} 7. Bd3 {[%clk 0:02:54]}  c6 {[%clk 0:02:58]} 8. O-O {[%clk 0:02:54]}  dxc4 {[%clk 0:02:58]} 9. Bxc4 {[%clk 0:02:54]}  b5 {[%clk 0:02:59]} 10. Bd3 {[%clk 0:02:54]}  a6 {[%clk 0:03:00]} 11. Bd2 {[%clk 0:02:53]}  c5 {[%clk 0:03:01]} 12. Rc1 {[%clk 0:02:42]}  Bb7 {[%clk 0:03:01]} 13. e4 {[%clk 0:02:39]}  cxd4 {[%clk 0:03:00]} 14. Nxd4 {[%clk 0:02:19]}  Nc5 {[%clk 0:03:00]} 15. Be3 {[%clk 0:02:20]}  Nxd3 {[%clk 0:03:00]} 16. Qxd3 {[%clk 0:02:18]}  e5 {[%clk 0:03:01]} 17. Rfd1 {[%clk 0:01:55]}  exd4 {[%clk 0:03:01]} 18. Bxd4 {[%clk 0:01:55]}  Rc8 {[%clk 0:02:33]} 19. Qg3 {[%clk 0:01:48]}  Qc7 {[%clk 0:02:25]} 20. e5 {[%clk 0:01:00]}  Ne4 {[%clk 0:02:19]} 21. Qg4 {[%clk 0:00:45]}  Qc6 {[%clk 0:01:40]} 22. Ne2 {[%clk 0:00:44]}  Qg6 {[%clk 0:01:37]} 23. Qh3 {[%clk 0:00:16]}  Ng5 {[%clk 0:01:16]} 24. Qd7 {[%clk 0:00:03]}  Rxc1 {[%clk 0:00:56]} 0-1


[Site "https://www.chess.com"]